fUSD/lending_fUSD_20240216
["ID","MTS","AMOUNT","RATE_DAILY","PERIOD"]
[314214543,1708087831824,-155.0,0.00034089,2]
[314214545,1708087831834,-300.68,0.00034091,5]
[314214547,1708087831843,-6705.61040858,0.0003412,6]
[314214549,1708087831852,-151.63,0.00034182,2]
[314214551,1708087831861,-151.63,0.00034433,2]
[314214553,1708087831870,-308.934426,0.000345,2]
[314214555,1708087831880,-893.107315,0.0003452,2]
[314214557,1708087831889,-465.433617,0.0003452,2]
[314214559,1708087831898,-2419.491867,0.0003452,2]
[314214561,1708087831907,-930.867234,0.0003452,2]
[314214563,1708087831917,-4937.924131,0.0003452,2]
[314214564,1708087831928,-647.18,0.00034521,2]
[314214566,1708087831938,-419.59249532,0.00034541,2]
[314214568,1708087831947,-150.0,0.00034548,10]
[314214569,1708087831956,-162.69,0.00034609,2]
[314214570,1708087831965,-151.63,0.00034684,2]
[314214571,1708087831973,-1339.660973,0.00034794,2]
[314214572,1708087831982,-698.150426,0.00034794,2]
[314214573,1708087831991,-3629.237801,0.00034794,2]
[314214574,1708087832000,-1396.300852,0.00034794,2]
[314214575,1708087832010,-7406.886197,0.00034794,2]
[314214576,1708087832019,-463.401639,0.000348,2]
[314214577,1708087832028,-840.91,0.00034846,2]
[314214578,1708087832037,-1786.214631,0.00034931,2]
[314214580,1708087832048,-930.867234,0.00034931,2]
[314214582,1708087832058,-4838.983734,0.00034931,2]
[314214584,1708087832067,-1861.734469,0.00034931,2]
[314214587,1708087832077,-9875.848263,0.00034931,2]
[314214588,1708087832086,-151.63,0.00034935,2]
[314214591,1708087832096,-617.868852,0.00035,2]
[314214593,1708087832105,-2232.768289,0.00035068,2]
[314214595,1708087832114,-1163.584043,0.00035068,2]
[314214596,1708087832124,-6048.729668,0.00035068,2]
[314214599,1708087832133,-2327.168087,0.00035068,2]
[314214600,1708087832143,-12344.810329,0.00035068,2]
[314214602,1708087832152,-419.59249532,0.00035157,2]
[314214604,1708087832161,-151.63,0.00035185,2]
[314214606,1708087832170,-869.5261,0.00035242,2]
[314214609,1708087832179,-876.9677,0.00035242,2]
[314214624,1708087832357,-3125.875604,0.00035342,2]
[314214625,1708087832367,-1629.017661,0.00035342,2]
[314214626,1708087832377,-8468.221535,0.00035342,2]
[314214627,1708087832386,-3258.035321,0.00035342,2]
[314214628,1708087832395,-17282.73446,0.00035342,2]
[314214629,1708087832405,-4234.7944,0.0003537,2]
[314214630,1708087832414,-6705.61040849,0.00035373,8]
[314214631,1708087832424,-1000.0,0.00035378,2]
[314214632,1708087832434,-2500.0,0.00035378,2]
[314214633,1708087832444,-10872.4797,0.00035378,7]
[314214634,1708087832453,-151.63,0.00035436,2]
[314214635,1708087832463,-28462.92959568,0.00035478,2]
[314214636,1708087832472,-772.336065,0.000356,2]
[314214637,1708087832481,-151.47741083,0.00035628,2]
[314214638,1708087832491,-330.06065864,0.00035628,2]
[314214639,1708087832501,-951.49158362,0.00035628,7]
[314214640,1708087832510,-187.87938035,0.00035628,9]
[314214641,1708087832520,-545.25910541,0.00035628,2]
[314214642,1708087832529,-253848.60863,0.00035629,8]
[314214643,1708087832539,-194.56583234,0.00035629,2]
[314214644,1708087832551,-3575.96483464,0.00035636,2]
[314214645,1708087832560,-72597.95936374,0.00035639,2]
[314214646,1708087832574,-673.23529726,0.00035639,2]
[314214647,1708087832586,-6274.50389956,0.00035639,2]
[314214648,1708087832602,-49156.96331116,0.00035639,2]
[314214649,1708087832614,-1230.17297282,0.00035639,2]
[314214654,1708087839612,-2543.87,0.00033202,2]
[314214655,1708087839622,-1233.01060595,0.00033344,2]
[314214656,1708087839634,-688.5,0.00033344,2]
[314214657,1708087839647,-410.01928592,0.00033344,2]
[314214658,1708087839659,-1005.01109618,0.00033344,2]
[314214659,1708087839671,-558.48901195,0.00033344,2]
[314214660,1708087839681,-454.0257,0.0003537,3]
[314214661,1708087839690,-674172.46725546,0.00035639,2]
[314214662,1708087839699,-500.0,0.00035728,2]
[314214663,1708087839709,-1776.5267,0.00035728,2]
[314214664,1708087839719,-3331.98755498,0.00035739,2]
[314214665,1708087839728,-419.59249532,0.00035773,2]
[314214666,1708087839738,-647.18,0.00035798,2]
[314214667,1708087839748,-1787.98241732,0.00035836,2]
[314214668,1708087839757,-1000.0,0.00035839,2]
[314214669,1708087839768,-39488.7513,0.00035839,2]
[314214670,1708087839777,-245000.0,0.00035839,2]
[314214671,1708087839786,-100000.0,0.00035839,2]
[314214672,1708087839796,-448.0,0.00035911,2]
[314214673,1708087839806,-1000.0,0.00035938,5]
[314214674,1708087839816,-1206.25257686,0.00035953,12]
[314214675,1708087839826,-718.38159523,0.00035953,12]
[314214676,1708087839836,-34103.24883523,0.00035953,12]
[314214677,1708087839846,-162.69,0.00035978,2]
[314214678,1708087839855,-3572.429262,0.00036,2]
[314214679,1708087839864,-1861.734469,0.00036,2]
[314214681,1708087839873,-9677.967469,0.00036,2]
[314214683,1708087839883,-3723.468939,0.00036,2]
[314214684,1708087839892,-19751.696526,0.00036,2]
[314214685,1708087839904,-1081.270491,0.00036,2]
[314214686,1708087839914,-758.47930316,0.00036083,4]
[314214687,1708087839923,-151.47741082,0.00036353,2]
[314214688,1708087839935,-419.59249532,0.00036389,2]
[314214689,1708087839945,-840.91,0.0003649,2]
[314214691,1708087839955,-9733.0,0.000365,3]
[314214692,1708087839965,-2060.0,0.000365,3]
[314214693,1708087839975,-186.94,0.00036545,2]
[314214694,1708087839985,-154.04,0.00036563,2]
[314214695,1708087839995,-6705.61040849,0.00036625,9]
[314214696,1708087840007,-5009.88,0.00037,20]
[314214697,1708087840017,-419.59249532,0.00037005,2]
[314214698,1708087840028,-28462.92959566,0.00037025,2]
[314214699,1708087840037,-647.18,0.00037075,2]
[314214700,1708087840047,-151.47741082,0.00037078,2]
[314214701,1708087840057,-951.49158361,0.00037255,8]
[314214702,1708087840066,-3331.98755488,0.00037318,2]
[314214703,1708087840076,-872.0,0.00037418,2]
[314214704,1708087840086,-419.59249532,0.00037622,2]
[314214705,1708087840095,-330.0606586,0.00037655,2]
[314214706,1708087840105,-180.0,0.00037671,2]
[314214707,1708087840114,-164.49529374,0.000378,2]
[314214708,1708087840124,-1123.56530184,0.000378,2]
[314214709,1708087840133,-3212.14062283,0.000378,2]
[314214710,1708087840142,-1860.68245666,0.000378,2]
[314214711,1708087840152,-193.5497916,0.000378,2]
[314214712,1708087840161,-151.47741082,0.00037803,2]
[314214713,1708087840171,-186.94,0.00037838,2]
[314214714,1708087840180,-6705.61040849,0.00037878,11]
[314214715,1708087840189,-194.56583234,0.0003789,2]
[314214716,1708087840199,-791526.93706729,0.000379,5]
[314214717,1708087840218,-1005.36,0.000379,7]
[314214718,1708087840229,-604.18,0.000379,7]
[314214719,1708087840253,-618240.644229,0.000379,2]
[314214720,1708087840276,-1426.9,0.000379,7]
[314214721,1708087840285,-1285.92332117,0.00038,30]
[314214722,1708087840295,-493.36069678,0.00038,4]
[314214723,1708087840306,-840.91,0.00038134,2]
[314214724,1708087840315,-448.0,0.00038174,2]
[314214725,1708087840324,-419.59249532,0.00038238,2]
[314214726,1708087840334,-647.18,0.00038352,2]
[314214727,1708087840344,-5000.0,0.00038356,14]
[314214728,1708087840353,-1000.0,0.00038356,14]
[314214729,1708087840363,-998.41,0.00038356,15]
[314214730,1708087840373,-150.0,0.00038356,2]
[314214731,1708087840382,-158.97,0.00038356,2]
[314214732,1708087840391,-151.47741082,0.00038528,2]
[314214733,1708087840401,-28462.92959566,0.00038572,2]
[314214734,1708087840411,-150.0,0.00038699,2]
[314214735,1708087840421,-300.0,0.00038699,2]
[314214736,1708087840431,-150.0,0.00038699,2]
[314214737,1708087840441,-494.3200348,0.00038699,5]
[314214738,1708087840450,-604.18,0.000387,7]
[314214739,1708087840460,-1426.9,0.000387,7]
[314214740,1708087840470,-160.0,0.00038835,2]
[314214741,1708087840479,-419.59249532,0.00038854,2]
[314214742,1708087840489,-951.49158361,0.00038882,9]
[314214743,1708087840498,-3331.98755488,0.00038897,2]
[314214744,1708087840508,-1005.36,0.000389,7]
[314214745,1708087840517,-327.69558962,0.00038972,11]
[314214746,1708087840526,-864.19701571,0.00039056,3]
[314214747,1708087840535,-1398.64307481,0.00039056,4]
[314214748,1708087840544,-1113.25356396,0.00039056,3]
[314214749,1708087840554,-1214.65122847,0.00039061,4]
[314214750,1708087840563,-367.90346025,0.00039065,3]
[314214751,1708087840572,-186.94,0.00039131,2]
[314214752,1708087840582,-6705.61040849,0.00039131,12]
[314214753,1708087840591,-541.05,0.00039178,2]
[314214754,1708087840601,-150.0,0.00039247,2]
[314214755,1708087840611,-151.47741082,0.00039253,3]
[314214756,1708087840622,-150.0,0.00039366,2]
[314214757,1708087840631,-419.59249532,0.0003947,2]
[314214758,1708087840641,-604.18,0.000395,7]
[314214759,1708087840650,-1426.9,0.000396,7]
[314214760,1708087840660,-277.878225,0.000396,2]
[314214761,1708087840669,-647.18,0.0003963,2]
[314214762,1708087840679,-330.0606586,0.00039682,2]
[314214763,1708087840688,-500.0,0.00039699,31]
[314214764,1708087840698,-500.0,0.00039699,31]
[314214765,1708087840707,-500.0,0.00039699,31]
[314214766,1708087840718,-500.0,0.00039699,31]
[314214767,1708087840728,-500.0,0.00039699,31]
[314214768,1708087840738,-500.0,0.00039699,31]
[314214769,1708087840748,-500.0,0.00039699,31]
[314214770,1708087840757,-500.0,0.00039699,31]
[314214771,1708087840767,-500.0,0.00039699,31]
[314214772,1708087840776,-500.0,0.00039699,31]
[314214773,1708087840786,-500.0,0.00039699,31]
[314214774,1708087840795,-500.0,0.00039699,31]
[314214775,1708087840806,-500.0,0.00039699,31]
[314214776,1708087840815,-500.0,0.00039699,31]
[314214777,1708087840824,-500.0,0.00039699,31]
[314214778,1708087840834,-500.0,0.00039699,31]
[314214779,1708087840844,-500.0,0.00039699,31]
[314214780,1708087840854,-500.0,0.00039699,31]
[314214781,1708087840863,-500.0,0.00039699,31]
[314214782,1708087840872,-500.0,0.00039699,31]
[314214783,1708087840882,-500.0,0.00039699,31]
[314214784,1708087840891,-500.0,0.00039699,31]
[314214785,1708087840901,-252.56826142,0.00039699,31]
[314214786,1708087840910,-500.0,0.00039699,31]
[314214787,1708087840920,-500.0,0.00039699,31]
[314214788,1708087840931,-500.0,0.00039699,31]
[314214789,1708087840940,-500.0,0.00039699,31]
[314214790,1708087840949,-500.0,0.00039699,31]
[314214791,1708087840959,-500.0,0.00039699,31]
[314214792,1708087840969,-500.0,0.00039699,31]
[314214793,1708087840979,-500.0,0.00039699,31]
[314214794,1708087840988,-500.0,0.00039699,31]
[314214795,1708087840998,-500.0,0.00039699,31]
[314214796,1708087841009,-500.0,0.00039699,31]
[314214797,1708087841018,-500.0,0.00039699,31]
[314214798,1708087841028,-500.0,0.00039699,31]
[314214799,1708087841038,-500.0,0.00039699,31]
[314214800,1708087841047,-500.0,0.00039699,31]
[314214801,1708087841060,-500.0,0.00039699,31]
[314214802,1708087841070,-500.0,0.00039699,31]
[314214803,1708087841079,-500.0,0.00039699,31]
[314214804,1708087841089,-500.0,0.00039699,31]
[314214805,1708087841099,-354.7016969,0.00039699,31]
[314214806,1708087841108,-500.0,0.00039699,31]
[314214807,1708087841117,-500.0,0.00039699,31]
[314214808,1708087841127,-500.0,0.00039699,31]
[314214809,1708087841136,-500.0,0.00039699,31]
[314214810,1708087841146,-500.0,0.00039699,31]
[314214811,1708087841155,-454.7904541,0.00039699,31]
[314214812,1708087841165,-500.0,0.00039699,31]
[314214813,1708087841175,-350.00000001,0.00039699,31]
[314214814,1708087841185,-500.0,0.00039699,31]
[314214815,1708087841194,-1005.36,0.000397,7]
[314214816,1708087841204,-252.780377,0.00039721,2]
[314214817,1708087841213,-155.124374,0.00039721,2]
[314214818,1708087841223,-180.320062,0.00039721,2]
[314214819,1708087841232,-217.64632,0.00039721,2]
[314214820,1708087841240,-252.780376,0.00039721,2]
[314214821,1708087841250,-196.597872,0.00039721,2]
[314214822,1708087841260,-200.0,0.00039772,30]
[314214823,1708087841269,-200.0,0.00039772,30]
[314214824,1708087841278,-200.0,0.00039772,30]
[314214825,1708087841288,-200.0,0.00039772,30]
[314214826,1708087841297,-200.0,0.00039772,30]
[314214827,1708087841309,-840.91,0.00039777,2]
[314214828,1708087841319,-372.1194636,0.00039879,31]
[314214829,1708087841328,-340.71648919,0.00039879,31]
[314214830,1708087841339,-395.3515855,0.00039879,31]
[314214831,1708087841348,-440.98397945,0.00039879,31]
[314214832,1708087841357,-154.04,0.00039886,2]
[314214833,1708087841367,-1000.0,0.00039899,5]
[314214834,1708087841376,-1624.545963,0.00039972,30]
[314214835,1708087841386,-150.0,0.00039972,30]
[314214836,1708087841395,-151.47741082,0.00039978,6]
[314214837,1708087841405,-588.87956143,0.00039988,5]
[314214838,1708087841414,-161.34,0.00040054,2]
[314214839,1708087841424,-419.59249532,0.00040087,2]
[314214840,1708087841433,-1787.98241732,0.00040116,2]
[314214841,1708087841443,-28462.92959566,0.00040119,2]
[314214842,1708087841452,-180.78,0.0004013,2]
[314214843,1708087841462,-604.18,0.000402,7]
[314214844,1708087841472,-252.780377,0.00040218,2]
[314214845,1708087841481,-252.780376,0.00040218,2]
[314214846,1708087841491,-196.597872,0.00040218,2]
[314214847,1708087841500,-666.0,0.00040273,2]
[314214848,1708087841510,-150.0,0.00040283,2]
[314214849,1708087841520,-1426.9,0.000403,7]
[314214850,1708087841529,-150.0,0.00040375,2]
[314214851,1708087841539,-6705.61040849,0.00040384,14]
[314214852,1708087841548,-186.94,0.00040423,2]
[314214853,1708087841559,-448.0,0.00040438,2]
[314214854,1708087841569,-3331.98755488,0.00040476,5]
[314214855,1708087841579,-1005.36,0.000405,7]
[314214856,1708087841589,-951.49158361,0.00040509,9]
[314214857,1708087841599,-151.47741082,0.00040702,9]
[314214858,1708087841609,-419.59249532,0.00040703,2]
[314214859,1708087841618,-252.780377,0.00040714,2]
[314214860,1708087841628,-252.780376,0.00040714,2]
[314214861,1708087841637,-196.597872,0.00040714,2]
[314214862,1708087841647,-155.124374,0.00040714,2]
[314214863,1708087841656,-180.261755,0.00040798,2]
[314214864,1708087841665,-245.34,0.000408,2]
[314214865,1708087841675,-300.0,0.0004083,7]
[314214866,1708087841685,-150.61036016,0.000409,2]
[314214867,1708087841694,-150.61036007,0.000409,2]
[314214868,1708087841704,-150.61036007,0.000409,2]
[314214869,1708087841715,-1000.0,0.00041,11]
[314214870,1708087841724,-528.58653199,0.00041095,30]
[314214871,1708087841734,-260.60913167,0.00041095,30]
[314214872,1708087841744,-522.23822649,0.00041095,30]
[314214873,1708087841753,-500.0,0.00041095,30]
[314214874,1708087841762,-453.23781326,0.00041095,30]
[314214875,1708087841772,-500.0,0.00041095,30]
[314214876,1708087841782,-500.0,0.00041095,30]
[314214877,1708087841791,-1148.67,0.00041095,30]
[314214878,1708087841805,-500.0,0.00041095,7]
[314214879,1708087841814,-500.0,0.00041095,30]
[314214880,1708087841824,-500.0,0.00041095,30]
[314214881,1708087841833,-750.96,0.00041095,30]
[314214882,1708087841842,-800.95,0.00041095,30]
[314214883,1708087841852,-661.97,0.00041095,30]
[314214884,1708087841862,-500.0,0.00041095,30]
[314214885,1708087841871,-500.0,0.00041095,30]
[314214886,1708087841881,-500.0,0.00041095,30]
[314214887,1708087841890,-252.780377,0.00041211,30]
[314214888,1708087841899,-252.780376,0.00041211,30]
[314214889,1708087841909,-196.597872,0.00041211,30]
[314214890,1708087841919,-419.59249532,0.00041319,2]
[314214891,1708087841930,-500.0,0.00041369,30]
[314214892,1708087841939,-500.0,0.00041369,30]
[314214893,1708087841949,-498.56123763,0.00041369,30]
[314214894,1708087841959,-500.0,0.00041369,30]
[314214895,1708087841968,-1148.67,0.00041369,30]
[314214896,1708087841977,-500.0,0.00041369,7]
[314214897,1708087841986,-500.0,0.00041369,30]
[314214898,1708087841995,-500.0,0.00041369,30]
[314214899,1708087842005,-750.96,0.00041369,30]
[314214900,1708087842014,-800.95,0.00041369,30]
[314214901,1708087842023,-661.97,0.00041369,30]
[314214902,1708087842033,-500.0,0.00041369,30]
[314214903,1708087842042,-500.0,0.00041369,30]
[314214904,1708087842053,-500.0,0.00041369,30]
[314214905,1708087842063,-450.0,0.00041378,7]
[314214906,1708087842072,-150.0,0.00041384,2]
[314214907,1708087842084,-840.91,0.00041421,2]
[314214908,1708087842094,-151.47741082,0.00041427,12]
[314214909,1708087842104,-1037.0,0.000415,12]
[314214910,1708087842113,-1055.05130905,0.00041521,5]
[314214911,1708087842123,-872.0,0.00041576,2]
[314214912,1708087842132,-416.0,0.0004159,3]
[314214913,1708087842143,-218.0,0.0004159,3]
[314214914,1708087842152,-6705.61040849,0.00041636,15]
[314214915,1708087842161,-573.92716885,0.00041643,30]
[314214916,1708087842171,-500.0,0.00041643,30]
[314214917,1708087842180,-1148.67,0.00041643,30]
[314214918,1708087842189,-500.0,0.00041643,7]
[314214920,1708087842198,-500.0,0.00041643,30]
[314214921,1708087842207,-500.0,0.00041643,30]
[314214922,1708087842216,-750.96,0.00041643,30]
[314214923,1708087842226,-800.95,0.00041643,30]
[314214924,1708087842235,-661.97,0.00041643,30]
[314214925,1708087842244,-500.0,0.00041643,30]
[314214926,1708087842253,-500.0,0.00041643,30]
[314214928,1708087842262,-28462.92959566,0.00041666,3]
[314214930,1708087842272,-3177.0,0.000417,87]
[314214931,1708087842281,-252.780377,0.00041707,30]
[314214932,1708087842290,-252.780376,0.00041707,30]
[314214933,1708087842299,-196.597872,0.00041707,30]
[314214934,1708087842309,-155.124374,0.00041707,30]
[314214935,1708087842319,-330.0606586,0.00041708,2]
[314214938,1708087842328,-186.94,0.00041716,2]
[314214939,1708087842337,-500.0,0.00041917,30]
[314214940,1708087842349,-1148.67,0.00041917,30]
[314214941,1708087842359,-513.17673394,0.00041917,7]
[314214942,1708087842368,-500.0,0.00041917,30]
[314214943,1708087842378,-500.0,0.00041917,30]
[314214944,1708087842387,-750.96,0.00041917,30]
[314214945,1708087842396,-800.95,0.00041917,30]
[314214946,1708087842406,-661.97,0.00041917,30]
[314214947,1708087842415,-479.67779719,0.00041917,30]
[314214948,1708087842425,-500.0,0.00041917,30]
[314214949,1708087842435,-600.0,0.00041926,7]
[314214950,1708087842445,-419.59249532,0.00041935,2]
[314214951,1708087842455,-965.23195016,0.00042,7]
[314214952,1708087842465,-8337.34726281,0.00042,30]
[314214953,1708087842474,-1000.0,0.00042,12]
[314214954,1708087842484,-200.0,0.00042,2]
[314214955,1708087842493,-207.0,0.00042002,10]
[314214956,1708087842503,-207.0,0.00042002,10]
[314214957,1708087842512,-207.0,0.00042002,10]
[314214958,1708087842522,-3331.98755488,0.00042055,5]
[314214959,1708087842531,-998.41,0.00042092,15]
[314214960,1708087842540,-951.49158361,0.00042135,10]
[314214961,1708087842550,-151.47741082,0.00042152,14]
[314214962,1708087842560,-500.0,0.00042191,30]
[314214963,1708087842570,-1148.67,0.00042191,30]
[314214964,1708087842580,-399.97549648,0.00042191,30]
[314214965,1708087842590,-500.0,0.00042191,30]
[314214966,1708087842600,-750.96,0.00042191,30]
[314214967,1708087842610,-800.95,0.00042191,30]
[314214968,1708087842620,-661.97,0.00042191,30]
[314214969,1708087842630,-500.0,0.00042191,30]
[314214970,1708087842639,-438.186,0.00042236,2]
[314214971,1708087842649,-2871.0,0.00042236,2]
[314214972,1708087842658,-1372.308,0.00042236,2]
[314214973,1708087842668,-151.0,0.00042329,7]
[314214974,1708087842811,-150.0,0.00042394,2]
[314214975,1708087842844,-500.0,0.00042465,30]
[314214976,1708087842854,-1148.67,0.00042465,30]
[314214977,1708087842864,-500.0,0.00042465,30]
[314214978,1708087842873,-750.96,0.00042465,30]
[314214979,1708087842883,-800.95,0.00042465,30]
[314214980,1708087842893,-661.97,0.00042465,30]
[314214981,1708087842903,-500.0,0.00042465,30]
[314214982,1708087842913,-151.0,0.00042466,7]
[314214983,1708087842923,-500.0,0.00042468,7]
[314214984,1708087842936,-750.0,0.00042474,7]
[314214986,1708087842945,-1502.82404158,0.000425,2]
[314214988,1708087842955,-419.59249532,0.00042551,2]
[314214990,1708087842964,-151.0,0.00042603,7]
[314214992,1708087842974,-1123.56530184,0.000427,2]
[314214994,1708087842984,-3212.14062283,0.000427,2]
[314214996,1708087842993,-448.0,0.00042702,2]
[314214998,1708087843002,-5000.0,0.00042705,3]
[314215000,1708087843013,-500.0,0.00042739,30]
[314215002,1708087843024,-1148.67,0.00042739,30]
[314215004,1708087843034,-500.0,0.00042739,30]
[314215006,1708087843043,-750.96,0.00042739,30]
[314215008,1708087843054,-800.95,0.00042739,30]
[314215010,1708087843063,-661.97,0.00042739,30]
[314215012,1708087843072,-500.0,0.00042739,30]
[314215014,1708087843081,-151.0,0.0004274,7]
[314215016,1708087843091,-1000.0,0.0004277,15]
[314215018,1708087843101,-1000.0,0.0004277,15]
[314215020,1708087843110,-150.0,0.00042776,30]
[314215023,1708087843129,-180.78,0.000428,2]
[314215026,1708087843140,-1000.0,0.00042805,15]
[314215028,1708087843149,-1860.68245665,0.0004285,2]
[314215030,1708087843159,-151.0,0.00042877,7]
[314215032,1708087843168,-151.47741082,0.00042877,17]
[314215034,1708087843177,-6705.61040849,0.00042889,17]
[314215036,1708087843186,-312.18,0.000429,2]
[314215038,1708087843196,-156.3,0.00042984,2]
[314215040,1708087843206,-200.0,0.00042989,20]
[314215042,1708087843215,-2008.98466596,0.00043,30]
[314215044,1708087843225,-6587.43378057,0.00043,30]
[314215046,1708087843234,-10000.0,0.00043,30]
[314215048,1708087843243,-10000.0,0.00043,30]
[314215050,1708087843253,-186.94,0.00043008,2]
[314215052,1708087843262,-500.0,0.00043013,30]
[314215054,1708087843272,-1148.67,0.00043013,30]
[314215056,1708087843282,-500.0,0.00043013,30]
[314215058,1708087843291,-750.96,0.00043013,30]
[314215060,1708087843301,-800.95,0.00043013,30]
[314215062,1708087843315,-661.97,0.00043013,30]
[314215064,1708087843326,-500.0,0.00043013,30]
[314215066,1708087843336,-151.0,0.00043014,7]
[314215069,1708087843345,-900.0,0.00043022,7]
[314215070,1708087843355,-151.0,0.00043151,7]
[314215073,1708087843364,-419.59249532,0.00043168,2]
[314215075,1708087843373,-154.04,0.0004321,2]
[314215077,1708087843383,-28462.92959566,0.00043212,5]
[314215079,1708087843392,-500.0,0.00043287,30]
[314215081,1708087843402,-1148.67,0.00043287,30]
[314215083,1708087843411,-620.7771209,0.00043287,30]
[314215085,1708087843421,-750.96,0.00043287,30]
[314215087,1708087843431,-800.95,0.00043287,30]
[314215088,1708087843440,-661.97,0.00043287,30]
[314215089,1708087843449,-500.0,0.00043287,30]
[314215090,1708087843461,-151.0,0.00043288,7]
[314215091,1708087843470,-1000.0,0.000433,2]
[314215092,1708087843479,-1005.36,0.000433,7]
[314215093,1708087843488,-604.18,0.000434,7]
[314215094,1708087843497,-1426.9,0.000434,7]
[314215095,1708087843507,-150.0,0.00043403,2]
[314215096,1708087843516,-1000.0,0.00043404,2]
[314215098,1708087843525,-1124.87618276,0.00043462,10]
[314215100,1708087843534,-418.04166137,0.00043561,30]
[314215102,1708087843544,-1148.67,0.00043561,30]
[314215104,1708087843553,-750.96,0.00043561,30]
[314215106,1708087843563,-800.95,0.00043561,30]
[314215108,1708087843572,-661.97,0.00043561,30]
[314215110,1708087843582,-500.0,0.00043561,30]
[314215112,1708087843591,-1050.0,0.0004357,7]
[314215113,1708087843600,-151.47741082,0.00043602,20]
[314215116,1708087843610,-151.0,0.0004363,7]
[314215118,1708087843619,-3331.98755488,0.00043634,5]
[314215120,1708087843629,-1026.15232935,0.00043708,10]
[314215122,1708087843638,-330.0606586,0.00043735,2]
[314215124,1708087843647,-951.49158361,0.00043762,11]
[314215126,1708087843660,-200.0,0.00043763,15]
[314215128,1708087843670,-419.59249532,0.00043784,2]
[314215130,1708087843679,-1235.737704,0.00043798,30]
[314215132,1708087843689,-3589.81566687,0.000438,30]
[314215134,1708087843699,-5325.958911,0.000438,56]
[314215136,1708087843709,-4000.0,0.000438,2]
[314215138,1708087843720,-1148.67,0.00043835,30]
[314215140,1708087843730,-750.96,0.00043835,30]
[314215142,1708087843740,-661.97,0.00043835,30]
[314215144,1708087843749,-800.95,0.00043835,30]
[314215146,1708087843759,-500.0,0.00043835,30]
[314215148,1708087843768,-1451.11837641,0.00043914,2]
[314215150,1708087843778,-800.0,0.00043941,25]
[314215152,1708087843788,-200.0,0.00043941,30]
[314215154,1708087843797,-500.0,0.00043941,30]
[314215156,1708087843807,-150.0,0.0004399,2]
[314215158,1708087843816,-623.0,0.00043997,2]
[314215160,1708087843826,-503.6232727,0.00044,30]
[314215162,1708087843835,-155.0,0.00044,2]
[314215164,1708087843844,-152.96275076,0.00044,45]
[314215166,1708087843854,-354.76,0.00044,2]
[314215168,1708087843864,-150.0,0.00044052,2]
[314215170,1708087843874,-1005.36,0.000441,7]
[314215172,1708087843884,-604.18,0.000441,7]
[314215174,1708087843893,-200.0,0.000441,2]
[314215176,1708087843903,-1426.9,0.000441,7]
[314215178,1708087843912,-1148.67,0.00044109,30]
[314215180,1708087843922,-750.96,0.00044109,30]
[314215182,1708087843934,-661.97,0.00044109,30]
[314215184,1708087843944,-800.95,0.00044109,30]
[314215186,1708087843953,-500.0,0.00044109,30]
[314215188,1708087843963,-1200.0,0.00044118,7]
[314215190,1708087843973,-150.0,0.00044118,2]
[314215192,1708087843982,-150.0,0.00044133,2]
[314215194,1708087843992,-6705.61040849,0.00044142,19]
[314215196,1708087844002,-154.13603139,0.00044153,2]
[314215198,1708087844012,-1451.11837641,0.00044181,2]
[314215200,1708087844022,-150.0,0.00044201,2]
[314215203,1708087844032,-150.0,0.00044216,2]